[Event "Early Titled Tuesday Blitz | February 8 2022"]
[White "Jarocka, Liwia"]
[Black "Kushagra, Mohan"]
[WhiteFideId "21807558"]
[BlackFideId "25033638"]
[WhiteElo "1896"]
[BlackElo "1886"]
[Result "1/2-1/2"]
[Round "01"]
[TimeControl "180+1"]
[Date "2022.02.08"]
[WhiteClock "0:00:16"]
[BlackClock "0:00:20"]

1. d4 {[%clk 0:03:00]}  Nf6 {[%clk 0:02:57]} 2. Bf4 {[%clk 0:03:00]}  g6 {[%clk 0:02:57]} 3. e3 {[%clk 0:03:00]}  Bg7 {[%clk 0:02:56]} 4. h3 {[%clk 0:03:00]}  O-O {[%clk 0:02:56]} 5. Nf3 {[%clk 0:03:00]}  d6 {[%clk 0:02:56]} 6. c3 {[%clk 0:02:59]}  c5 {[%clk 0:02:56]} 7. Nbd2 {[%clk 0:02:59]}  cxd4 {[%clk 0:02:56]} 8. exd4 {[%clk 0:02:58]}  Nc6 {[%clk 0:02:53]} 9. Be2 {[%clk 0:02:57]}  Nd5 {[%clk 0:02:53]} 10. Bh2 {[%clk 0:02:54]}  e5 {[%clk 0:02:53]} 11. dxe5 {[%clk 0:02:52]}  dxe5 {[%clk 0:02:54]} 12. O-O {[%clk 0:02:51]}  Nf4 {[%clk 0:02:52]} 13. Bxf4 {[%clk 0:02:49]}  exf4 {[%clk 0:02:52]} 14. Nc4 {[%clk 0:02:47]}  Qc7 {[%clk 0:02:51]} 15. Qd6 {[%clk 0:02:44]}  Qxd6 {[%clk 0:02:32]} 16. Nxd6 {[%clk 0:02:45]}  Be6 {[%clk 0:02:32]} 17. Rfc1 {[%clk 0:02:09]}  Rab8 {[%clk 0:01:54]} 18. b3 {[%clk 0:02:04]}  Rfd8 {[%clk 0:01:52]} 19. Nc4 {[%clk 0:01:57]}  b5 {[%clk 0:01:51]} 20. Ncd2 {[%clk 0:01:51]}  b4 {[%clk 0:01:50]} 21. Ne4 {[%clk 0:01:35]}  Bf5 {[%clk 0:01:34]} 22. Nc5 {[%clk 0:01:20]}  Bxc3 {[%clk 0:01:29]} 23. Rxc3 {[%clk 0:01:16]}  bxc3 {[%clk 0:01:30]} 24. Rc1 {[%clk 0:01:17]}  c2 {[%clk 0:01:27]} 25. Nh4 {[%clk 0:01:17]}  Rd2 {[%clk 0:01:13]} 26. Nxf5 {[%clk 0:00:51]}  gxf5 {[%clk 0:01:02]} 27. Kf1 {[%clk 0:00:23]}  Nb4 {[%clk 0:00:58]} 28. Ke1 {[%clk 0:00:21]}  Rd5 {[%clk 0:00:40]} 29. a3 {[%clk 0:00:18]}  Rxc5 {[%clk 0:00:36]} 30. axb4 {[%clk 0:00:19]}  Rxb4 {[%clk 0:00:36]} 31. Bc4 {[%clk 0:00:19]}  Rcxc4 {[%clk 0:00:33]} 32. bxc4 {[%clk 0:00:19]}  Rxc4 {[%clk 0:00:33]} 33. Kd2 {[%clk 0:00:20]}  f3 {[%clk 0:00:31]} 34. gxf3 {[%clk 0:00:19]}  Kg7 {[%clk 0:00:31]} 35. Rg1+ {[%clk 0:00:19]}  Kf6 {[%clk 0:00:31]} 36. Kc1 {[%clk 0:00:20]}  a5 {[%clk 0:00:31]} 37. Rg8 {[%clk 0:00:20]}  a4 {[%clk 0:00:31]} 38. Ra8 {[%clk 0:00:21]}  Ke5 {[%clk 0:00:30]} 39. Ra7 {[%clk 0:00:20]}  Kf6 {[%clk 0:00:30]} 40. Ra6+ {[%clk 0:00:20]}  Kg5 {[%clk 0:00:30]} 41. Ra7 {[%clk 0:00:21]}  Kg6 {[%clk 0:00:30]} 42. f4 {[%clk 0:00:20]}  f6 {[%clk 0:00:28]} 43. f3 {[%clk 0:00:20]}  Rc3 {[%clk 0:00:26]} 44. Rxa4 {[%clk 0:00:18]}  Rxf3 {[%clk 0:00:26]} 45. Kxc2 {[%clk 0:00:18]}  Rxh3 {[%clk 0:00:27]} 46. Kd2 {[%clk 0:00:18]}  Kh5 {[%clk 0:00:25]} 47. Ke2 {[%clk 0:00:17]}  Kg4 {[%clk 0:00:26]} 48. Ra6 {[%clk 0:00:16]}  Rh6 {[%clk 0:00:26]} 49. Ke3 {[%clk 0:00:16]}  Rh3+ {[%clk 0:00:25]} 50. Kf2 {[%clk 0:00:16]}  Kxf4 {[%clk 0:00:25]} 51. Rxf6 {[%clk 0:00:16]}  Kg5 {[%clk 0:00:26]} 52. Rf8 {[%clk 0:00:16]}  h5 {[%clk 0:00:26]} 53. Kg2 {[%clk 0:00:16]}  Ra3 {[%clk 0:00:25]} 54. Rg8+ {[%clk 0:00:16]}  Kf4 {[%clk 0:00:25]} 55. Rh8 {[%clk 0:00:17]}  Kg4 {[%clk 0:00:25]} 56. Rg8+ {[%clk 0:00:16]}  Kf4 {[%clk 0:00:24]} 57. Rh8 {[%clk 0:00:16]}  Ra2+ {[%clk 0:00:24]} 58. Kh3 {[%clk 0:00:16]}  Ra3+ {[%clk 0:00:20]} 59. Kg2 {[%clk 0:00:16]} 1/2-1/2


[Site "https://www.chess.com"]

[Event "Early Titled Tuesday Blitz | February 8 2022"]
[White "Jones, Gawain C B"]
[Black "Bettalli, Francesco"]
[WhiteFideId "409561"]
[BlackFideId "2816453"]
[WhiteElo "2657"]
[BlackElo "2216"]
[Result "1-0"]
[Round "01"]
[TimeControl "180+1"]
[Date "2022.02.08"]
[WhiteClock "0:01:10"]
[BlackClock "0:01:41"]

1. Nf3 {[%clk 0:02:59]}  c5 {[%clk 0:02:58]} 2. g3 {[%clk 0:02:59]}  g6 {[%clk 0:02:59]} 3. Bg2 {[%clk 0:02:59]}  Bg7 {[%clk 0:02:59]} 4. O-O {[%clk 0:02:59]}  e6 {[%clk 0:02:59]} 5. d4 {[%clk 0:02:57]}  cxd4 {[%clk 0:02:59]} 6. Nxd4 {[%clk 0:02:58]}  d5 {[%clk 0:02:59]} 7. c4 {[%clk 0:02:53]}  Ne7 {[%clk 0:02:59]} 8. Nc3 {[%clk 0:02:47]}  Nbc6 {[%clk 0:02:54]} 9. Nxc6 {[%clk 0:02:42]}  bxc6 {[%clk 0:02:55]} 10. Qd3 {[%clk 0:02:39]}  O-O {[%clk 0:02:55]} 11. Bd2 {[%clk 0:02:18]}  Ba6 {[%clk 0:02:50]} 12. b3 {[%clk 0:02:18]}  dxc4 {[%clk 0:02:47]} 13. bxc4 {[%clk 0:02:18]}  Qxd3 {[%clk 0:02:45]} 14. exd3 {[%clk 0:02:18]}  Rfd8 {[%clk 0:02:46]} 15. Rac1 {[%clk 0:02:04]}  Rxd3 {[%clk 0:02:44]} 16. Ne4 {[%clk 0:02:00]}  Rd4 {[%clk 0:02:34]} 17. Bg5 {[%clk 0:01:54]}  Nf5 {[%clk 0:02:24]} 18. Nf6+ {[%clk 0:01:42]}  Bxf6 {[%clk 0:02:22]} 19. Bxf6 {[%clk 0:01:43]}  Rxc4 {[%clk 0:02:22]} 20. Bxc6 {[%clk 0:01:22]}  Rc8 {[%clk 0:02:20]} 21. Rxc4 {[%clk 0:01:22]}  Bxc4 {[%clk 0:02:21]} 22. Bd7 {[%clk 0:01:14]}  Rc7 {[%clk 0:02:13]} 23. Rb1 {[%clk 0:01:12]}  Ne7 {[%clk 0:01:42]} 24. Rb8+ {[%clk 0:01:11]}  Nc8 {[%clk 0:01:41]} 25. Bxc8 {[%clk 0:01:10]} 1-0


[Site "https://www.chess.com"]

[Event "Early Titled Tuesday Blitz | February 8 2022"]
[White "Kalajzic, Ivan"]
[Black "Aradhya, Garg"]
[WhiteFideId "14506378"]
[BlackFideId "25006746"]
[WhiteElo "2163"]
[BlackElo "2169"]
[Result "0-1"]
[Round "01"]
[TimeControl "180+1"]
[Date "2022.02.08"]
[WhiteClock "0:01:22"]
[BlackClock "0:00:53"]

1. b3 {[%clk 0:03:00]}  e5 {[%clk 0:02:58]} 2. Bb2 {[%clk 0:03:00]}  Nc6 {[%clk 0:02:57]} 3. e3 {[%clk 0:03:00]}  g6 {[%clk 0:02:51]} 4. Bb5 {[%clk 0:02:59]}  Bg7 {[%clk 0:02:51]} 5. Nf3 {[%clk 0:02:59]}  Nge7 {[%clk 0:02:51]} 6. d4 {[%clk 0:02:59]}  e4 {[%clk 0:02:48]} 7. Nfd2 {[%clk 0:02:58]}  d5 {[%clk 0:02:46]} 8. c4 {[%clk 0:02:53]}  f5 {[%clk 0:02:46]} 9. cxd5 {[%clk 0:02:46]}  Nxd5 {[%clk 0:02:46]} 10. a3 {[%clk 0:02:44]}  O-O {[%clk 0:02:46]} 11. O-O {[%clk 0:02:41]}  Nce7 {[%clk 0:02:45]} 12. Nc3 {[%clk 0:02:32]}  Nxc3 {[%clk 0:02:39]} 13. Bxc3 {[%clk 0:02:33]}  c5 {[%clk 0:02:40]} 14. Bc4+ {[%clk 0:02:24]}  Kh8 {[%clk 0:02:39]} 15. Qc2 {[%clk 0:02:24]}  cxd4 {[%clk 0:02:38]} 16. Bxd4 {[%clk 0:02:25]}  Bxd4 {[%clk 0:02:36]} 17. exd4 {[%clk 0:02:26]}  Qxd4 {[%clk 0:02:36]} 18. Rad1 {[%clk 0:02:25]}  Qf6 {[%clk 0:02:35]} 19. Nb1 {[%clk 0:02:12]}  Nc6 {[%clk 0:02:34]} 20. Qc3 {[%clk 0:02:12]}  Qxc3 {[%clk 0:02:19]} 21. Nxc3 {[%clk 0:02:13]}  Ne5 {[%clk 0:02:20]} 22. Nd5 {[%clk 0:02:09]}  Nxc4 {[%clk 0:02:17]} 23. bxc4 {[%clk 0:02:09]}  Be6 {[%clk 0:02:11]} 24. f3 {[%clk 0:01:57]}  Rac8 {[%clk 0:01:23]} 25. fxe4 {[%clk 0:01:56]}  Rxc4 {[%clk 0:01:22]} 26. exf5 {[%clk 0:01:52]}  Rxf5 {[%clk 0:01:20]} 27. Ne3 {[%clk 0:01:52]}  Rxf1+ {[%clk 0:01:18]} 28. Rxf1 {[%clk 0:01:42]}  Rc3 {[%clk 0:01:17]} 29. Rf3 {[%clk 0:01:36]}  Rxa3 {[%clk 0:01:12]} 30. Kf2 {[%clk 0:01:34]}  Kg8 {[%clk 0:00:59]} 31. Rf6 {[%clk 0:01:31]}  Bd7 {[%clk 0:00:59]} 32. Rd6 {[%clk 0:01:31]}  Bc6 {[%clk 0:00:59]} 33. Ng4 {[%clk 0:01:29]}  Kg7 {[%clk 0:00:57]} 34. Re6 {[%clk 0:01:25]}  Ra2+ {[%clk 0:00:56]} 35. Ke3 {[%clk 0:01:22]}  Rxg2 {[%clk 0:00:53]} 36. Re7+ {[%clk 0:01:22]}  Kf8 {[%clk 0:00:53]} 0-1


[Site "https://www.chess.com"]

[Event "Early Titled Tuesday Blitz | February 8 2022"]
[White "Kett, Tim"]
[Black "Camacho Collados, Jose"]
[WhiteFideId "1801210"]
[BlackFideId "2265427"]
[WhiteElo "2098"]
[BlackElo "2351"]
[Result "0-1"]
[Round "01"]
[TimeControl "180+1"]
[Date "2022.02.08"]
[WhiteClock "0:01:55"]
[BlackClock "0:02:34"]

1. e4 {[%clk 0:03:00]}  c5 {[%clk 0:02:56]} 2. Nf3 {[%clk 0:02:59]}  Nc6 {[%clk 0:02:56]} 3. d4 {[%clk 0:03:00]}  cxd4 {[%clk 0:02:56]} 4. Nxd4 {[%clk 0:03:01]}  Nf6 {[%clk 0:02:55]} 5. Nc3 {[%clk 0:03:00]}  e6 {[%clk 0:02:53]} 6. Be3 {[%clk 0:02:53]}  Bb4 {[%clk 0:02:52]} 7. Be2 {[%clk 0:02:38]}  d5 {[%clk 0:02:51]} 8. exd5 {[%clk 0:02:15]}  Nxd5 {[%clk 0:02:50]} 9. O-O {[%clk 0:02:14]}  Bxc3 {[%clk 0:02:45]} 10. bxc3 {[%clk 0:02:13]}  Nxc3 {[%clk 0:02:37]} 11. Qd3 {[%clk 0:01:55]}  Nxd4 {[%clk 0:02:34]} 0-1


[Site "https://www.chess.com"]

[Event "Early Titled Tuesday Blitz | February 8 2022"]
[White "Khamdamova, Afruza"]
[Black "Gaehwiler, Gabriel"]
[WhiteFideId "14210444"]
[BlackFideId "1314530"]
[WhiteElo "1660"]
[BlackElo "2383"]
[Result "1-0"]
[Round "01"]
[TimeControl "180+1"]
[Date "2022.02.08"]
[WhiteClock "0:00:12"]
[BlackClock "0:00:08"]

1. e4 {[%clk 0:03:00]}  c5 {[%clk 0:02:58]} 2. Nf3 {[%clk 0:03:00]}  Nc6 {[%clk 0:02:57]} 3. d4 {[%clk 0:03:00]}  cxd4 {[%clk 0:02:58]} 4. Nxd4 {[%clk 0:03:00]}  d6 {[%clk 0:02:57]} 5. Nc3 {[%clk 0:03:00]}  Bd7 {[%clk 0:02:57]} 6. Be3 {[%clk 0:02:57]}  Nf6 {[%clk 0:02:57]} 7. f3 {[%clk 0:02:56]}  a6 {[%clk 0:02:57]} 8. Bc4 {[%clk 0:02:52]}  Rc8 {[%clk 0:02:52]} 9. Bb3 {[%clk 0:02:52]}  e6 {[%clk 0:02:53]} 10. O-O {[%clk 0:02:51]}  Be7 {[%clk 0:02:52]} 11. f4 {[%clk 0:02:47]}  Nxd4 {[%clk 0:02:51]} 12. Bxd4 {[%clk 0:02:46]}  Bc6 {[%clk 0:02:52]} 13. Qd3 {[%clk 0:02:42]}  O-O {[%clk 0:02:50]} 14. Rad1 {[%clk 0:02:41]}  b5 {[%clk 0:02:48]} 15. a3 {[%clk 0:02:40]}  Nd7 {[%clk 0:02:44]} 16. Qg3 {[%clk 0:02:36]}  Bf6 {[%clk 0:02:30]} 17. e5 {[%clk 0:02:36]}  dxe5 {[%clk 0:02:28]} 18. fxe5 {[%clk 0:02:35]}  Be7 {[%clk 0:02:17]} 19. Qg4 {[%clk 0:02:25]}  Nc5 {[%clk 0:01:57]} 20. Ba2 {[%clk 0:02:07]}  Qe8 {[%clk 0:01:57]} 21. b4 {[%clk 0:01:59]}  Nd7 {[%clk 0:01:53]} 22. Ne4 {[%clk 0:01:58]}  Kh8 {[%clk 0:01:52]} 23. c3 {[%clk 0:01:56]}  Ba8 {[%clk 0:01:39]} 24. Bb1 {[%clk 0:01:55]}  Qd8 {[%clk 0:01:33]} 25. Qh3 {[%clk 0:01:00]}  g6 {[%clk 0:01:19]} 26. Nf6 {[%clk 0:00:55]}  Nxf6 {[%clk 0:00:52]} 27. exf6 {[%clk 0:00:54]}  Bd6 {[%clk 0:00:53]} 28. Kh1 {[%clk 0:00:28]}  Rg8 {[%clk 0:00:46]} 29. Be5 {[%clk 0:00:21]}  Bxe5 {[%clk 0:00:44]} 30. Rxd8 {[%clk 0:00:21]}  Rcxd8 {[%clk 0:00:45]} 31. Qh6 {[%clk 0:00:19]}  Bxc3 {[%clk 0:00:41]} 32. Bc2 {[%clk 0:00:18]}  Rd2 {[%clk 0:00:37]} 33. Rf4 {[%clk 0:00:14]}  Bxg2+ {[%clk 0:00:20]} 34. Kg1 {[%clk 0:00:14]}  Bxf6 {[%clk 0:00:08]} 35. Rxf6 {[%clk 0:00:12]}  Rxc2 {[%clk 0:00:08]} 36. Rxf7 {[%clk 0:00:12]} 1-0


[Site "https://www.chess.com"]

[Event "Early Titled Tuesday Blitz | February 8 2022"]
[White "Komiagina, Maria"]
[Black "Yang, Kaiqi"]
[WhiteFideId "4153987"]
[BlackFideId "8604398"]
[WhiteElo "1945"]
[BlackElo "2373"]
[Result "0-1"]
[Round "01"]
[TimeControl "180+1"]
[Date "2022.02.08"]
[WhiteClock "0:00:32"]
[BlackClock "0:00:16"]

1. e4 {[%clk 0:02:58]}  c5 {[%clk 0:02:59]} 2. Nf3 {[%clk 0:02:58]}  Nf6 {[%clk 0:03:00]} 3. d3 {[%clk 0:02:55]}  Nc6 {[%clk 0:02:55]} 4. h3 {[%clk 0:02:54]}  d6 {[%clk 0:02:48]} 5. Nc3 {[%clk 0:02:53]}  g6 {[%clk 0:02:49]} 6. Be2 {[%clk 0:02:51]}  Bg7 {[%clk 0:02:49]} 7. O-O {[%clk 0:02:50]}  O-O {[%clk 0:02:49]} 8. Be3 {[%clk 0:02:48]}  b6 {[%clk 0:02:38]} 9. Qd2 {[%clk 0:02:46]}  e5 {[%clk 0:02:19]} 10. a3 {[%clk 0:02:31]}  Bb7 {[%clk 0:02:14]} 11. Rab1 {[%clk 0:02:29]}  d5 {[%clk 0:02:11]} 12. exd5 {[%clk 0:02:20]}  Nxd5 {[%clk 0:02:11]} 13. Nxd5 {[%clk 0:02:19]}  Qxd5 {[%clk 0:02:12]} 14. Bh6 {[%clk 0:02:14]}  Nd4 {[%clk 0:02:10]} 15. Bxg7 {[%clk 0:02:09]}  Kxg7 {[%clk 0:02:11]} 16. Bd1 {[%clk 0:01:58]}  Rfe8 {[%clk 0:01:46]} 17. Re1 {[%clk 0:01:57]}  f6 {[%clk 0:01:44]} 18. c3 {[%clk 0:01:55]}  Ne6 {[%clk 0:01:39]} 19. Be2 {[%clk 0:01:46]}  Nf4 {[%clk 0:01:36]} 20. Kh2 {[%clk 0:01:33]}  Rad8 {[%clk 0:01:34]} 21. Rbd1 {[%clk 0:01:31]}  g5 {[%clk 0:01:24]} 22. Bf1 {[%clk 0:01:28]}  h5 {[%clk 0:01:20]} 23. Qe3 {[%clk 0:01:25]}  g4 {[%clk 0:01:17]} 24. Nh4 {[%clk 0:01:22]}  gxh3 {[%clk 0:00:55]} 25. Nf5+ {[%clk 0:00:53]}  Kh7 {[%clk 0:00:46]} 26. c4 {[%clk 0:00:51]}  Qc6 {[%clk 0:00:29]} 27. f3 {[%clk 0:00:38]}  hxg2 {[%clk 0:00:17]} 28. Bxg2 {[%clk 0:00:38]}  Rg8 {[%clk 0:00:18]} 29. Rg1 {[%clk 0:00:35]}  Rg5 {[%clk 0:00:18]} 30. Nh4 {[%clk 0:00:34]}  Rdg8 {[%clk 0:00:18]} 31. Bh1 {[%clk 0:00:32]}  Qe6 {[%clk 0:00:16]} 0-1


[Site "https://www.chess.com"]

[Event "Early Titled Tuesday Blitz | February 8 2022"]
[White "Kravtsiv, Martyn"]
[Black "Pesotskiy, Mikhail"]
[WhiteFideId "14113147"]
[BlackFideId "34164453"]
[WhiteElo "2694"]
[BlackElo "2010"]
[Result "1-0"]
[Round "01"]
[TimeControl "180+1"]
[Date "2022.02.08"]
[WhiteClock "0:00:23"]
[BlackClock "0:00:39"]

1. e4 {[%clk 0:03:00]}  e6 {[%clk 0:02:57]} 2. d4 {[%clk 0:02:59]}  d5 {[%clk 0:02:56]} 3. Nc3 {[%clk 0:03:00]}  Bb4 {[%clk 0:02:56]} 4. e5 {[%clk 0:02:59]}  c5 {[%clk 0:02:57]} 5. a3 {[%clk 0:02:57]}  Bxc3+ {[%clk 0:02:57]} 6. bxc3 {[%clk 0:02:57]}  Qa5 {[%clk 0:02:58]} 7. Bd2 {[%clk 0:02:57]}  Qa4 {[%clk 0:02:59]} 8. Qg4 {[%clk 0:02:50]}  Kf8 {[%clk 0:02:59]} 9. O-O-O {[%clk 0:02:39]}  Qxa3+ {[%clk 0:02:20]} 10. Kb1 {[%clk 0:02:39]}  Nc6 {[%clk 0:02:12]} 11. Nf3 {[%clk 0:02:20]}  Nge7 {[%clk 0:02:06]} 12. h4 {[%clk 0:01:49]}  Bd7 {[%clk 0:01:54]} 13. Rh3 {[%clk 0:01:48]}  cxd4 {[%clk 0:01:15]} 14. Ng5 {[%clk 0:01:00]}  dxc3 {[%clk 0:01:11]} 15. Rxc3 {[%clk 0:00:56]}  Nxe5 {[%clk 0:00:53]} 16. Qd4 {[%clk 0:00:37]}  Qd6 {[%clk 0:00:49]} 17. Bf4 {[%clk 0:00:36]}  N7c6 {[%clk 0:00:49]} 18. Rxc6 {[%clk 0:00:35]}  Qxc6 {[%clk 0:00:43]} 19. Bxe5 {[%clk 0:00:35]}  f6 {[%clk 0:00:43]} 20. Bxf6 {[%clk 0:00:34]}  gxf6 {[%clk 0:00:44]} 21. Qxf6+ {[%clk 0:00:34]}  Ke8 {[%clk 0:00:43]} 22. Qxh8+ {[%clk 0:00:31]}  Ke7 {[%clk 0:00:43]} 23. Qxh7+ {[%clk 0:00:29]}  Kd6 {[%clk 0:00:43]} 24. Qd3 {[%clk 0:00:30]}  Rc8 {[%clk 0:00:41]} 25. Nf7+ {[%clk 0:00:24]}  Ke7 {[%clk 0:00:40]} 26. Ne5 {[%clk 0:00:24]}  Qb6+ {[%clk 0:00:40]} 27. Qb3 {[%clk 0:00:24]}  Qa5 {[%clk 0:00:39]} 28. Nxd7 {[%clk 0:00:23]}  Kxd7 {[%clk 0:00:39]} 1-0


[Site "https://www.chess.com"]

[Event "Early Titled Tuesday Blitz | February 8 2022"]
[White "Le Ruyet, Leopold"]
[Black "Dew, Brian"]
[WhiteFideId "645923"]
[BlackFideId "6000495"]
[WhiteElo "2276"]
[BlackElo "2118"]
[Result "1-0"]
[Round "01"]
[TimeControl "180+1"]
[Date "2022.02.08"]
[WhiteClock "0:00:14"]
[BlackClock "0:00:01"]

1. d4 {[%clk 0:03:00]}  b6 {[%clk 0:02:57]} 2. c4 {[%clk 0:02:59]}  Bb7 {[%clk 0:02:57]} 3. Nc3 {[%clk 0:03:00]}  Nf6 {[%clk 0:02:57]} 4. f3 {[%clk 0:03:00]}  e6 {[%clk 0:02:57]} 5. a3 {[%clk 0:02:57]}  c5 {[%clk 0:02:57]} 6. d5 {[%clk 0:02:55]}  exd5 {[%clk 0:02:57]} 7. cxd5 {[%clk 0:02:56]}  d6 {[%clk 0:02:56]} 8. e4 {[%clk 0:02:56]}  g6 {[%clk 0:02:56]} 9. Nge2 {[%clk 0:02:53]}  Bg7 {[%clk 0:02:57]} 10. Be3 {[%clk 0:02:50]}  O-O {[%clk 0:02:57]} 11. Qd2 {[%clk 0:02:50]}  Re8 {[%clk 0:02:54]} 12. Ng3 {[%clk 0:02:49]}  a6 {[%clk 0:02:53]} 13. a4 {[%clk 0:02:47]}  Nbd7 {[%clk 0:02:52]} 14. h4 {[%clk 0:02:46]}  h5 {[%clk 0:02:52]} 15. Bg5 {[%clk 0:02:43]}  Qc7 {[%clk 0:02:51]} 16. Bd3 {[%clk 0:02:38]}  Nxd5 {[%clk 0:02:50]} 17. Nxd5 {[%clk 0:02:36]}  Bxd5 {[%clk 0:02:50]} 18. O-O {[%clk 0:02:34]}  Bb7 {[%clk 0:02:49]} 19. f4 {[%clk 0:02:31]}  f6 {[%clk 0:02:38]} 20. f5 {[%clk 0:02:28]}  fxg5 {[%clk 0:02:00]} 21. fxg6 {[%clk 0:02:27]}  Qd8 {[%clk 0:02:01]} 22. Nxh5 {[%clk 0:02:13]}  Bd4+ {[%clk 0:01:53]} 23. Kh2 {[%clk 0:02:05]}  Qe7 {[%clk 0:01:50]} 24. hxg5 {[%clk 0:01:56]}  Qe5+ {[%clk 0:01:46]} 25. g3 {[%clk 0:01:55]}  Qh8 {[%clk 0:01:37]} 26. g4 {[%clk 0:01:23]}  Ne5 {[%clk 0:01:22]} 27. Kg3 {[%clk 0:01:22]}  Nxg6 {[%clk 0:01:22]} 28. Rf6 {[%clk 0:00:40]}  Bxf6 {[%clk 0:01:06]} 29. Bc4+ {[%clk 0:00:40]}  Kf8 {[%clk 0:00:34]} 30. Qxd6+ {[%clk 0:00:35]}  Re7 {[%clk 0:00:10]} 31. gxf6 {[%clk 0:00:34]}  Ke8 {[%clk 0:00:03]} 32. fxe7 {[%clk 0:00:17]}  Qe5+ {[%clk 0:00:02]} 33. Qxe5 {[%clk 0:00:17]}  Nxe5 {[%clk 0:00:03]} 34. Bd5 {[%clk 0:00:16]}  Bxd5 {[%clk 0:00:03]} 35. Nf6+ {[%clk 0:00:16]}  Kxe7 {[%clk 0:00:04]} 36. Nxd5+ {[%clk 0:00:16]}  Kd6 {[%clk 0:00:04]} 37. Rf1 {[%clk 0:00:13]}  Rg8 {[%clk 0:00:04]} 38. Rf6+ {[%clk 0:00:13]}  Kd7 {[%clk 0:00:01]} 39. Rf5 {[%clk 0:00:14]} 1-0


[Site "https://www.chess.com"]

[Event "Early Titled Tuesday Blitz | February 8 2022"]
[White "Lewicki, Miroslaw"]
[Black "Lenderman, Aleksandr"]
[WhiteFideId "1113380"]
[BlackFideId "2021285"]
[WhiteElo "2283"]
[BlackElo "2651"]
[Result "0-1"]
[Round "01"]
[TimeControl "180+1"]
[Date "2022.02.08"]
[WhiteClock "0:00:20"]
[BlackClock "0:01:14"]

1. g3 {[%clk 0:03:00]}  d5 {[%clk 0:02:54]} 2. Bg2 {[%clk 0:03:01]}  e5 {[%clk 0:02:53]} 3. d3 {[%clk 0:03:00]}  Nc6 {[%clk 0:02:52]} 4. Nf3 {[%clk 0:02:58]}  f6 {[%clk 0:02:49]} 5. O-O {[%clk 0:02:50]}  Be6 {[%clk 0:02:49]} 6. b3 {[%clk 0:02:50]}  Qd7 {[%clk 0:02:49]} 7. Bb2 {[%clk 0:02:51]}  Bc5 {[%clk 0:02:47]} 8. c4 {[%clk 0:02:51]}  Nge7 {[%clk 0:02:46]} 9. Nc3 {[%clk 0:02:50]}  O-O {[%clk 0:02:44]} 10. cxd5 {[%clk 0:02:47]}  Nxd5 {[%clk 0:02:44]} 11. Rc1 {[%clk 0:02:46]}  Nxc3 {[%clk 0:02:42]} 12. Rxc3 {[%clk 0:02:44]}  Bb6 {[%clk 0:02:41]} 13. Qc1 {[%clk 0:02:36]}  Rad8 {[%clk 0:02:40]} 14. a3 {[%clk 0:02:33]}  Bd5 {[%clk 0:02:34]} 15. b4 {[%clk 0:02:32]}  Bxf3 {[%clk 0:02:28]} 16. exf3 {[%clk 0:02:08]}  Nd4 {[%clk 0:02:29]} 17. Re1 {[%clk 0:02:02]}  Rfe8 {[%clk 0:02:21]} 18. Kf1 {[%clk 0:01:30]}  Qf5 {[%clk 0:02:16]} 19. f4 {[%clk 0:01:25]}  c6 {[%clk 0:02:03]} 20. fxe5 {[%clk 0:01:18]}  Nf3 {[%clk 0:02:03]} 21. Re4 {[%clk 0:00:46]}  Nxh2+ {[%clk 0:01:49]} 22. Kg1 {[%clk 0:00:47]}  Ng4 {[%clk 0:01:49]} 23. Rf4 {[%clk 0:00:46]}  Bxf2+ {[%clk 0:01:36]} 24. Kf1 {[%clk 0:00:45]}  Qxe5 {[%clk 0:01:36]} 25. Be4 {[%clk 0:00:26]}  Be3 {[%clk 0:01:31]} 26. Qd1 {[%clk 0:00:21]}  Bxf4 {[%clk 0:01:18]} 27. Qxg4 {[%clk 0:00:20]}  f5 {[%clk 0:01:14]} 0-1


[Site "https://www.chess.com"]

[Event "Early Titled Tuesday Blitz | February 8 2022"]
[White "Lodici, Lorenzo"]
[Black "Shton, Roman"]
[WhiteFideId "884189"]
[BlackFideId "14137461"]
[WhiteElo "2265"]
[BlackElo "2038"]
[Result "1-0"]
[Round "01"]
[TimeControl "180+1"]
[Date "2022.02.08"]
[WhiteClock "0:02:17"]
[BlackClock "0:02:25"]

1. e4 {[%clk 0:03:00]}  Nf6 {[%clk 0:02:54]} 2. e5 {[%clk 0:02:58]}  Nd5 {[%clk 0:02:53]} 3. d4 {[%clk 0:02:57]}  d6 {[%clk 0:02:53]} 4. f4 {[%clk 0:02:53]}  dxe5 {[%clk 0:02:53]} 5. fxe5 {[%clk 0:02:53]}  c5 {[%clk 0:02:53]} 6. c4 {[%clk 0:02:51]}  Nc7 {[%clk 0:02:53]} 7. d5 {[%clk 0:02:51]}  g6 {[%clk 0:02:49]} 8. Bf4 {[%clk 0:02:48]}  Bg7 {[%clk 0:02:49]} 9. Qd2 {[%clk 0:02:46]}  Nd7 {[%clk 0:02:49]} 10. Nf3 {[%clk 0:02:46]}  Nb6 {[%clk 0:02:49]} 11. Nc3 {[%clk 0:02:45]}  Bg4 {[%clk 0:02:50]} 12. O-O-O {[%clk 0:02:42]}  Nd7 {[%clk 0:02:42]} 13. Qe3 {[%clk 0:02:41]}  Na6 {[%clk 0:02:40]} 14. h3 {[%clk 0:02:34]}  Bxf3 {[%clk 0:02:37]} 15. gxf3 {[%clk 0:02:35]}  Qc7 {[%clk 0:02:32]} 16. e6 {[%clk 0:02:17]}  Ne5 {[%clk 0:02:26]} 17. exf7+ {[%clk 0:02:17]}  Kxf7 {[%clk 0:02:25]} 18. Re1 {[%clk 0:02:17]} 1-0


[Site "https://www.chess.com"]

[Event "Early Titled Tuesday Blitz | February 8 2022"]
[White "Lopez Mulet, Inigo"]
[Black "Dovbnia, Nikita"]
[WhiteFideId "22235620"]
[BlackFideId "54104599"]
[WhiteElo "2315"]
[BlackElo "2111"]
[Result "1-0"]
[Round "01"]
[TimeControl "180+1"]
[Date "2022.02.08"]
[WhiteClock "0:02:08"]
[BlackClock "0:00:17"]

1. d4 {[%clk 0:02:57]}  Nf6 {[%clk 0:02:59]} 2. Nf3 {[%clk 0:02:57]}  c5 {[%clk 0:02:58]} 3. d5 {[%clk 0:02:57]}  d6 {[%clk 0:02:57]} 4. Nc3 {[%clk 0:02:57]}  g6 {[%clk 0:02:55]} 5. e4 {[%clk 0:02:57]}  Bg7 {[%clk 0:02:54]} 6. Nd2 {[%clk 0:02:56]}  e6 {[%clk 0:02:37]} 7. Bb5+ {[%clk 0:02:51]}  Bd7 {[%clk 0:02:28]} 8. dxe6 {[%clk 0:02:50]}  fxe6 {[%clk 0:02:27]} 9. Nc4 {[%clk 0:02:49]}  O-O {[%clk 0:02:09]} 10. Bxd7 {[%clk 0:02:36]}  Nbxd7 {[%clk 0:01:52]} 11. Qxd6 {[%clk 0:02:34]}  Re8 {[%clk 0:01:44]} 12. Bg5 {[%clk 0:02:32]}  b5 {[%clk 0:01:21]} 13. Nxb5 {[%clk 0:02:23]}  Nxe4 {[%clk 0:01:16]} 14. Bxd8 {[%clk 0:02:20]}  Nxd6 {[%clk 0:01:15]} 15. Nbxd6 {[%clk 0:02:21]}  Rexd8 {[%clk 0:01:12]} 16. O-O-O {[%clk 0:02:21]}  Ne5 {[%clk 0:00:46]} 17. c3 {[%clk 0:02:14]}  Rf8 {[%clk 0:00:33]} 18. f3 {[%clk 0:02:13]}  Rab8 {[%clk 0:00:21]} 19. Rhe1 {[%clk 0:02:09]}  Nxc4 {[%clk 0:00:19]} 20. Nxc4 {[%clk 0:02:10]}  Rfe8 {[%clk 0:00:17]} 21. Rd7 {[%clk 0:02:10]}  Rbd8 {[%clk 0:00:16]} 22. Rxa7 {[%clk 0:02:09]}  Bh6+ {[%clk 0:00:16]} 23. Kc2 {[%clk 0:02:09]}  Rd3 {[%clk 0:00:16]} 24. Kxd3 {[%clk 0:02:09]}  Rd8+ {[%clk 0:00:16]} 25. Ke4 {[%clk 0:02:09]}  Rc8 {[%clk 0:00:17]} 26. Ke5 {[%clk 0:02:08]} 1-0


[Site "https://www.chess.com"]